bitfinex/quotes_SOLUSD_20250402
["timestamp","ask_amount","ask_price","bid_price","bid_amount"]
[1743572461040,0.0001,123.93,123.92,26.80791043]
[1743572461244,12.53909915,123.97,123.92,127.70791043]
[1743572461643,12.53909915,123.97,123.93,0.14216157]
[1743572462157,0.063,123.97,123.93,0.14216157]
[1743572462459,0.063,123.97,123.94,8.0684]
[1743572462662,0.063,123.97,123.95,7.54]
[1743572462837,0.063,123.97,123.95,88.44]
[1743572464364,0.063,123.97,123.96,8.0671]
[1743572464856,0.063,123.97,123.96,15.7781]
[1743572465255,0.063,123.97,123.96,96.6781]
[1743572466555,0.063,123.98,123.96,115.32774886]
[1743572467454,0.063,123.99,123.97,38.79181043]
[1743572468754,0.063,124.01,124.0,8.1779]
[1743572468941,0.063,124.01,124.0,115.26754886]
[1743572469369,0.0001,124.03,124.01,38.79181043]
[1743572469540,0.063,124.04,124.03,20.0]
[1743572470166,0.063,124.04,124.03,38.64964886]
[1743572470557,0.063,124.04,124.03,20.0]
[1743572470763,0.063,124.04,124.03,28.0625]
[1743572471753,0.063,124.04,124.03,35.6025]
[1743572475573,0.063,124.04,124.03,116.5025]
[1743572476969,0.063,124.04,124.03,96.5025]
[1743572477563,0.063,124.04,124.03,80.9]
[1743572477765,0.063,124.04,124.02,8.0631]
[1743572477970,0.063,124.04,124.01,96.5036]
[1743572479564,0.063,124.04,124.01,88.44]
[1743572479753,0.063,124.04,124.01,96.5037]
[1743572481674,0.063,124.04,124.01,15.6037]
[1743572482873,0.063,124.04,124.01,96.5037]
[1743572484380,0.063,124.04,124.01,96.5667]
[1743572484752,0.063,124.04,124.01,15.6667]
[1743572485171,0.063,124.04,124.01,8.1267]
[1743572489384,0.063,124.04,124.01,0.063]
[1743572489573,25.32483954,124.03,124.01,0.063]
[1743572489769,16.22989382,124.03,124.01,0.063]
[1743572490758,24.29249382,124.03,124.01,0.063]
[1743572491484,0.28432314,124.02,124.01,0.063]
[1743572492763,43.22706582,124.02,124.01,0.063]
[1743572492965,108.4650411,124.02,124.01,0.063]
[1743572495291,108.4650411,124.02,123.94,8.0682]
[1743572495292,18.64964886,124.01,123.94,8.0682]
[1743572495476,0.28432314,124.0,123.94,28.2392]
[1743572499785,16.22989382,124.01,123.94,28.2392]
[1743572499970,16.83261696,124.02,123.94,28.2392]
[1743572501389,24.89581696,124.02,123.94,28.2392]
[1743572501692,16.22989382,124.01,123.94,28.2392]
[1743572501892,0.28432314,123.99,123.94,8.0682]
[1743572503685,43.22786582,124.01,123.94,8.0682]
[1743572503889,24.57821696,124.01,123.94,8.0682]
[1743572504274,16.51421696,124.01,123.94,28.2392]
[1743572504482,0.28432314,124.01,123.94,28.2392]
[1743572504883,0.03,124.03,123.97,27.6415]
[1743572505085,0.31432314,124.03,123.97,27.6415]
[1743572505692,0.31432314,124.03,123.98,8.0658]
[1743572505895,16.54421696,124.03,123.98,8.0658]
[1743572507185,0.31432314,124.03,123.98,8.0658]
[1743572508584,0.31432314,124.03,123.98,8.1288]
[1743572513904,0.03,124.03,123.98,35.8133]
[1743572515684,0.03,124.03,123.98,15.6488]
[1743572516813,24.32239382,124.03,123.98,15.6488]
[1743572518715,24.32239382,124.03,123.98,8.1288]
[1743572519114,0.31432314,124.03,123.98,8.1288]
[1743572520211,0.03,124.03,123.98,8.1288]
[1743572520783,0.03,124.03,123.98,28.2933]
[1743572525614,0.03,124.03,123.98,109.1933]
[1743572529512,0.03,124.03,123.98,89.0288]
[1743572529712,16.25989382,124.03,123.98,89.0288]
[1743572530420,0.03,124.03,123.98,89.0288]
[1743572530936,0.03,124.03,123.98,109.1933]
[1743572533617,0.03,124.03,124.02,8.0632]
[1743572534612,0.03,124.03,124.0,20.1607]
[1743572535446,0.03,124.03,123.99,28.228]
[1743572540343,0.03,124.03,123.99,109.128]
[1743572544039,0.03,124.03,123.99,109.191]
[1743572547034,0.03,124.03,123.99,89.0281]
[1743572547439,16.22989382,124.02,123.99,0.063]
[1743572547752,0.28432314,124.0,123.99,0.063]
[1743572548053,16.51421696,124.02,123.99,0.063]
[1743572548952,0.03,124.03,123.99,0.063]
[1743572549250,16.25989382,124.03,123.99,0.063]
[1743572551236,0.03,124.03,124.02,20.0]
[1743572551546,0.03,124.03,124.02,100.9]
[1743572553151,0.03,124.03,124.02,108.9632]
[1743572553524,0.03,124.03,124.02,116.4832]
[1743572554746,0.03,124.03,124.02,96.4832]
[1743572554957,0.03,124.03,124.02,15.5832]
[1743572557248,0.03,124.03,124.02,88.9632]
[1743572559249,0.03,124.03,124.02,80.9]
[1743572559827,0.03,124.03,124.02,88.9632]
[1743572560962,0.03,124.03,124.02,8.0632]
[1743572566960,0.03,124.03,124.02,15.5632]
[1743572568955,0.03,124.03,124.02,8.0632]
[1743572569135,0.03,124.03,124.02,15.5632]
[1743572576145,0.03,124.03,124.02,7.5]
[1743572576557,0.03,124.03,124.02,15.5632]
[1743572577441,0.03,124.03,124.0,8.0346]
[1743572577647,0.03,124.03,123.99,7.563]
[1743572577869,0.31432314,124.03,123.99,0.063]
[1743572578674,0.28432314,124.02,123.99,0.063]
[1743572579049,0.28432314,124.02,124.01,0.063]
[1743572579971,43.22706582,124.02,124.01,0.063]
[1743572581267,108.4650411,124.02,124.01,0.063]
[1743572581572,110.2272411,124.02,124.01,0.063]
[1743572581879,109.7272411,124.02,124.01,0.063]
[1743572585553,44.80766582,124.02,124.01,0.063]
[1743572585952,43.54546582,124.02,124.01,0.063]
[1743572587580,0.28432314,124.02,124.01,0.063]
[1743572587786,36.51421696,124.02,124.01,0.063]
[1743572588456,63.22706582,124.02,124.01,0.063]
[1743572588660,128.1466411,124.02,124.01,0.063]
[1743572589082,63.22706582,124.02,124.01,0.063]
[1743572591080,89.04752314,124.02,124.01,0.063]
[1743572591265,97.24421696,124.02,124.01,0.063]
[1743572591774,105.30741696,124.02,124.01,0.063]
[1743572593867,97.24421696,124.02,124.01,0.063]
[1743572597095,105.30741696,124.02,124.01,0.063]
[1743572598665,123.95706582,124.02,124.01,0.063]
[1743572598869,38.933972,124.0,123.99,0.063]
[1743572599068,135.86386582,124.0,123.99,0.063]
[1743572599673,18.933972,123.99,123.98,0.063]
[1743572599872,35.16386582,123.99,123.98,0.063]
[1743572600481,43.22896582,123.99,123.98,0.063]
[1743572604580,80.98432314,123.99,123.98,0.063]
[1743572605076,97.21421696,123.99,123.98,0.063]
[1743572606101,80.98432314,123.99,123.98,0.063]
[1743572606695,80.7,123.99,123.98,0.063]
[1743572607302,16.51421696,124.01,123.98,0.063]
[1743572607599,0.14216157,124.01,123.98,0.063]
[1743572609192,16.37205539,124.01,123.98,0.063]
[1743572613813,0.14216157,124.01,123.98,0.063]
[1743572616513,0.20516157,124.01,123.98,0.063]
[1743572618611,0.063,124.01,123.98,0.063]
[1743572622613,20.0,123.99,123.98,0.063]
[1743572622812,80.7,123.98,123.92,8.1146]
[1743572623003,16.51421696,123.95,123.92,8.1146]
[1743572624192,96.92989382,123.98,123.92,16.1842]
[1743572624413,16.22989382,123.98,123.92,16.1842]
[1743572625586,0.28432314,123.98,123.92,16.1842]
[1743572625791,8.35032314,123.98,123.92,16.1842]
[1743572625992,96.99289382,124.01,123.92,16.1842]
[1743572626203,0.28432314,124.0,123.92,97.0842]
[1743572626813,16.51421696,124.0,123.92,97.0842]
[1743572627118,24.57911696,124.0,123.92,117.2585]
[1743572628004,0.28432314,123.98,123.92,97.0842]
[1743572628205,0.28432314,123.98,123.92,16.1842]
[1743572630124,0.28432314,123.98,123.92,36.3585]
[1743572635100,24.58001696,123.98,123.92,36.3585]
[1743572637523,24.58001696,123.98,123.92,16.1842]
[1743572640398,0.28432314,123.98,123.92,16.1842]
[1743572641312,0.28432314,123.98,123.92,36.3585]
[1743572641721,0.063,123.99,123.92,36.3585]
[1743572642939,0.063,123.99,123.92,117.2585]
[1743572647036,16.51421696,123.98,123.92,97.0842]
[1743572647212,0.28432314,123.98,123.92,104.5842]
[1743572648839,0.28432314,123.98,123.92,23.6842]
[1743572652342,0.063,123.99,123.92,104.5842]
[1743572652548,0.063,123.99,123.97,6.0596]
[1743572652741,0.063,123.98,123.97,6.0596]
[1743572653409,0.063,123.98,123.97,21.606]
[1743572654441,0.34732314,123.98,123.93,8.1737]
[1743572656449,8.41312314,123.98,123.93,8.1737]
[1743572658519,24.64301696,123.98,123.93,8.1737]
[1743572658720,24.64301696,123.98,123.93,16.2425]
[1743572658919,8.41312314,123.98,123.93,16.2425]
[1743572663836,0.34732314,123.98,123.93,16.2425]
[1743572665050,0.34732314,123.98,123.93,16.2725]
[1743572665949,0.063,123.98,123.94,7.48]
[1743572667747,0.063,123.98,123.95,8.0677]
[1743572668847,0.063,123.98,123.95,28.2371]
[1743572675081,0.063,123.98,123.95,8.0677]
[1743572676069,0.063,123.98,123.95,109.1371]
[1743572676573,0.063,123.98,123.96,7.48]
[1743572677170,0.063,123.98,123.97,8.0664]
[1743572683077,0.063,123.98,123.96,8.0669]
[1743572683277,0.063,123.98,123.95,8.0675]
[1743572683669,0.063,123.98,123.94,8.0684]
[1743572684064,0.34732314,123.98,123.94,8.0684]
[1743572696683,0.063,123.98,123.94,8.0684]
[1743572696885,0.063,123.98,123.94,28.2394]
[1743572708694,0.063,123.98,123.95,18.64964886]
[1743572708903,0.063,123.98,123.96,7.48]
[1743572709407,0.063,123.98,123.97,8.0664]
[1743572710405,0.063,124.01,124.0,20.0]
[1743572710614,0.063,124.01,124.0,27.48]
[1743572710908,0.03,124.02,124.0,27.48]
[1743572710909,0.03,124.03,124.0,27.48]
[1743572711092,12.53909915,124.06,124.03,20.0]
[1743572711598,12.53909915,124.06,124.03,28.0625]
[1743572711904,0.063,124.06,124.03,28.0625]
[1743572717403,0.063,124.06,124.03,8.0625]
[1743572721395,0.0001,124.04,124.03,26.71214886]
[1743572722091,0.063,124.06,124.04,8.2874]
[1743572722411,0.063,124.06,124.04,26.93704886]
[1743572722590,0.063,124.06,124.05,8.0612]
[1743572723729,16.57721696,124.06,124.0,80.9]
[1743572724030,16.57721696,124.06,123.98,247.3874]
[1743572724031,16.22989382,124.05,124.01,30.0]
[1743572724339,16.51421696,124.04,124.01,30.0]
[1743572724622,24.29269382,124.03,124.01,30.0]
[1743572725705,33.41969574,124.03,124.01,30.0]
[1743572725896,33.41969574,124.03,123.98,7.8274]
[1743572726493,8.0628,124.03,123.98,7.8274]
[1743572726693,33.41969574,124.03,123.98,7.8274]
[1743572727228,8.0628,124.03,123.98,7.8274]
[1743572727419,33.41969574,124.03,123.98,7.8274]
[1743572728721,0.28432314,124.02,123.98,7.8274]
[1743572730311,8.34802314,124.02,123.98,7.8274]
[1743572734604,33.70491888,124.02,123.98,7.8274]
[1743572735702,33.70491888,124.02,123.98,7.8904]
[1743572739822,8.34802314,124.02,123.98,7.8904]
[1743572740031,33.70491888,124.02,123.98,7.8904]
[1743572743634,0.03,124.04,123.98,15.9562]
[1743572744339,0.03,124.04,123.99,7.46]
[1743572744710,0.03,124.04,124.0,8.0645]
[1743572747840,0.03,124.04,124.0,28.2257]
[1743572748559,0.03,124.04,123.99,96.4249]
[1743572749762,0.03,124.04,123.99,116.5878]
[1743572751358,0.03,124.04,124.0,18.64964886]
[1743572751556,0.03,124.04,124.01,8.0638]
[1743572751974,16.25109211,124.04,124.01,8.0638]
[1743572752459,0.03,124.04,123.99,8.0651]
[1743572752666,16.22109211,124.03,123.99,8.0651]
[1743572754461,16.25109211,124.04,123.99,8.0651]
[1743572754662,0.03,124.04,123.99,8.0651]
[1743572754851,0.03,124.04,123.99,28.228]
[1743572756842,16.25109211,124.04,123.99,8.0651]
[1743572757972,0.03,124.04,123.99,8.0651]
[1743572759154,0.03,124.04,123.99,8.1281]
[1743572760273,0.03,124.04,123.99,28.291]
[1743572761375,0.03,124.04,123.99,109.191]
[1743572761872,0.03,124.04,124.0,18.64964886]
[1743572762957,0.03,124.04,124.01,7.46]
[1743572764477,0.03,124.04,124.02,8.0632]
[1743572766351,0.03,124.04,124.02,16.0783]
[1743572768995,0.063,124.06,124.05,28.0151]
[1743572769155,0.063,124.06,124.05,35.4751]
[1743572771199,0.063,124.06,124.05,43.5363]
[1743572773997,0.063,124.06,124.04,8.0618]
[1743572774294,0.063,124.06,124.04,15.5218]
[1743572782915,0.063,124.06,124.04,15.5848]
[1743572785117,0.063,124.06,124.04,8.1248]
[1743572785319,0.063,124.06,124.05,8.0612]
[1743572785521,0.063,124.06,124.05,15.5012]
[1743572786922,0.063,124.06,124.04,8.1246]
[1743572787127,0.063,124.06,124.04,15.5646]
[1743572787829,0.063,124.06,124.04,8.1246]
[1743572790227,0.063,124.06,124.04,0.063]
[1743572797128,16.28409211,124.06,124.04,0.063]
[1743572797511,0.063,124.06,124.04,0.063]
[1743572798209,16.22109211,124.05,124.04,0.063]
[1743572799511,24.56661525,124.05,124.04,0.063]
[1743572806444,43.21626411,124.05,124.04,0.063]
[1743572806809,123.91626411,124.05,124.04,0.063]
[1743572809028,97.20541525,124.05,124.04,0.063]
[1743572810244,80.98432314,124.05,124.04,0.063]
[1743572810442,0.063,124.06,124.04,0.063]
[1743572819459,16.22109211,124.05,124.04,0.063]
[1743572820057,0.34732314,124.06,124.04,0.063]
[1743572820262,16.56841525,124.06,124.04,0.063]
[1743572820736,0.34732314,124.06,124.04,0.063]
[1743572821567,0.063,124.06,124.04,0.063]
[1743572821772,0.063,124.06,124.04,6.0945]
[1743572823763,0.063,124.06,124.04,0.063]
[1743572823962,16.56841525,124.06,124.04,0.063]
[1743572824145,16.22109211,124.05,124.04,0.063]
[1743572825554,24.56661525,124.05,124.04,0.063]
[1743572826655,0.063,124.06,124.04,0.063]
[1743572835080,16.56841525,124.06,124.04,0.063]
[1743572835279,0.34732314,124.06,124.04,0.063]
[1743572837188,16.56841525,124.06,124.04,0.063]
[1743572837685,24.62911525,124.06,124.04,0.063]
[1743572837887,16.50541525,124.05,124.04,0.063]
[1743572839091,24.56661525,124.05,124.04,0.063]
[1743572840667,8.34552314,124.05,124.04,0.063]
[1743572840875,24.56661525,124.05,124.04,0.063]
[1743572843300,0.28432314,124.05,124.04,0.063]
[1743572843475,80.763,124.06,124.04,0.063]
[1743572843881,0.063,124.06,124.04,0.063]
[1743572848586,0.063,124.06,124.04,0.063]
[1743572853506,0.063,124.06,124.05,1.5357]
[1743572854707,16.56841525,124.06,124.04,0.063]
[1743572854912,16.50541525,124.05,124.04,0.063]
[1743572855506,43.21626411,124.05,124.04,0.063]
[1743572857713,0.28432314,124.05,124.04,0.063]
[1743572858086,0.34732314,124.06,124.04,0.063]
[1743572858843,0.063,124.06,124.04,0.063]
[1743572875575,0.34732314,124.06,124.04,0.063]
[1743572875870,25.68433219,124.06,124.04,0.063]
[1743572876665,0.34732314,124.06,124.04,0.063]
[1743572881850,0.063,124.06,124.04,0.063]
[1743572890881,0.28432314,124.05,124.04,0.063]
[1743572892051,8.34552314,124.05,124.04,0.063]
[1743572892246,0.28432314,124.05,124.04,0.063]
[1743572896184,0.34732314,124.06,124.04,0.063]
[1743572899208,0.063,124.06,124.04,0.063]
[1743572904892,0.34732314,124.06,124.04,0.063]
[1743572906205,16.56500007,124.06,124.04,0.063]
[1743572906506,24.62610007,124.06,124.04,0.063]
[1743572907998,8.40842314,124.06,124.04,0.063]
[1743572908386,0.34732314,124.06,124.04,0.063]
[1743572910918,8.40802314,124.06,124.04,0.063]
[1743572911313,0.34732314,124.06,124.04,0.063]
[1743572911723,8.40802314,124.06,124.04,0.063]
[1743572912323,0.063,124.06,124.04,16.28067693]
[1743572912492,0.063,124.06,124.04,24.34217693]
[1743572913823,0.063,124.06,124.04,0.063]
[1743572918724,0.063,124.06,124.04,16.28067693]
[1743572919321,0.063,124.06,124.04,24.34207693]
[1743572920923,0.063,124.06,124.04,0.063]
[1743572924011,0.34732314,124.06,124.04,0.063]
[1743572925035,0.063,124.06,124.04,0.063]
[1743572925502,0.20516157,124.06,124.04,0.063]
[1743572925699,0.34732314,124.06,124.04,0.063]
[1743572925916,16.56500007,124.06,124.04,0.063]
[1743572927642,24.62570007,124.06,124.04,0.063]
[1743572927817,0.063,124.06,124.04,0.063]
[1743572933629,0.063,124.06,124.05,16.21767693]
[1743572933836,0.063,124.06,124.05,24.21807693]
[1743572934050,0.063,124.06,124.05,32.27927693]
[1743572934948,0.063,124.06,124.05,16.0616]
[1743572937724,0.063,124.08,124.07,20.0]
[1743572937942,0.063,124.1,124.07,127.55004886]
[1743572938115,0.063,124.1,124.08,8.0593]
[1743572939515,0.063,124.1,124.07,116.9601]
[1743572940921,0.063,124.1,124.07,108.9004]
[1743572941123,0.063,124.1,124.07,28.0004]
[1743572942037,0.063,124.1,124.07,36.0603]
[1743572945151,0.063,124.1,124.07,116.9603]
[1743572945949,0.063,124.1,124.07,108.9004]
[1743572950843,0.063,124.1,124.07,8.0004]
[1743572951047,0.063,124.1,124.06,0.063]
[1743572954249,0.063,124.1,124.07,8.1724]
[1743572954625,0.063,124.1,124.07,15.5724]
[1743572955956,0.063,124.1,124.08,8.0593]
[1743572959757,0.063,124.1,124.08,8.1223]
[1743572965545,0.063,124.1,124.08,89.0223]
[1743572968760,0.063,124.1,124.08,0.063]
[1743572985205,7.56602314,124.14,124.08,0.063]
[1743572985500,8.4363,124.15,124.08,0.063]
[1743572986813,24.64285577,124.15,124.08,0.063]
[1743572987201,0.28432314,124.14,124.08,0.063]
[1743572988590,0.14216157,124.14,124.09,7.829]
[1743572988796,80.7,124.16,124.09,7.829]
[1743572989015,0.14216157,124.15,124.09,7.829]
[1743572990239,0.14216157,124.15,124.1,8.058]
[1743572991190,8.19686157,124.15,124.1,8.058]
[1743572991621,0.14216157,124.15,124.1,8.058]
[1743572995804,0.17216157,124.15,124.1,8.058]
[1743572996314,0.17216157,124.15,124.09,16.0327]
[1743572997422,0.17216157,124.15,124.09,24.0913]
[1743572999219,16.20655577,124.14,124.09,8.0586]
[1743572999400,24.57577891,124.15,124.09,8.0586]
[1743573004539,90.4122,124.14,124.08,0.063]
[1743573004719,0.14216157,124.13,124.08,0.063]
[1743573005034,35.14052777,124.13,124.08,0.063]
[1743573005605,0.14216157,124.11,124.08,0.063]
[1743573005936,0.14216157,124.12,124.08,0.063]
[1743573006127,24.40591734,124.12,124.08,0.063]
[1743573008514,8.19936157,124.12,124.08,0.063]
[1743573008824,24.40591734,124.12,124.08,0.063]
[1743573009416,0.14216157,124.1,124.08,0.063]
[1743573009918,16.34871734,124.1,124.08,0.063]
[1743573010747,34.9983662,124.09,124.08,0.063]
[1743573010946,35.14052777,124.09,124.08,0.063]
[1743573011634,43.19912777,124.09,124.08,0.063]
[1743573012249,108.02535085,124.09,124.08,0.0001]
[1743573013317,43.19912777,124.09,124.08,0.0001]
[1743573014227,43.19912777,124.09,124.06,0.063]
[1743573014228,0.28432314,124.08,124.06,0.063]
[1743573014429,43.0582662,124.07,124.06,0.063]
[1743573016044,0.14216157,124.07,124.06,0.063]
[1743573016351,0.28432314,124.07,124.06,0.063]
[1743573016861,0.14216157,124.07,124.06,0.063]
[1743573017235,31.80761734,124.09,124.06,0.063]
[1743573017450,0.14216157,124.08,124.06,0.063]
[1743573018053,8.20206157,124.07,124.06,0.063]
[1743573018433,24.40861734,124.07,124.06,0.063]
[1743573018757,43.20042777,124.07,124.06,0.063]
[1743573019250,1.6634,124.1,124.06,0.063]
[1743573019457,0.14216157,124.1,124.06,0.063]
[1743573021237,0.14216157,124.11,124.06,0.063]
[1743573023853,8.19946157,124.11,124.06,0.063]
[1743573024058,0.14216157,124.1,124.06,0.063]
[1743573027965,0.14216157,124.11,124.06,0.063]
[1743573028459,0.28432314,124.11,124.06,0.063]
[1743573028756,0.03,124.15,124.09,20.0]
[1743573028962,0.03,124.15,124.07,7.8692]
[1743573028963,0.17216157,124.15,124.1,20.0]
[1743573030662,0.03,124.11,124.1,28.0575]
[1743573031166,0.03,124.11,124.07,108.9181]
[1743573032761,0.03,124.11,124.08,8.0593]
[1743573034868,0.03,124.11,124.07,1.5008]
[1743573034869,0.14216157,124.1,124.07,1.5008]
[1743573035050,0.14216157,124.1,124.06,0.063]
[1743573036147,0.03,124.11,124.06,0.063]
[1743573046780,16.49087891,124.1,124.06,0.063]
[1743573046963,0.14216157,124.09,124.06,0.063]
[1743573048081,16.34871734,124.09,124.06,0.063]
[1743573048581,24.40781734,124.09,124.06,0.063]
[1743573049169,0.14216157,124.09,124.06,0.063]
[1743573050064,24.40751734,124.09,124.06,0.063]
[1743573051688,16.34871734,124.09,124.06,0.063]
[1743573052087,24.40741734,124.09,124.06,0.063]
[1743573052794,0.14216157,124.09,124.06,0.063]
[1743573053873,8.058,124.1,124.06,0.063]
[1743573054085,0.14216157,124.09,124.06,0.063]
[1743573054892,24.43621734,124.11,124.06,0.063]
[1743573055094,0.14216157,124.1,124.06,0.063]
[1743573056084,8.20016157,124.1,124.06,0.063]
[1743573057288,0.14216157,124.1,124.06,0.063]
[1743573058683,8.20016157,124.1,124.06,0.063]
[1743573060294,24.40671734,124.1,124.06,0.063]
[1743573061705,0.14216157,124.08,124.06,0.063]
[1743573062807,0.14216157,124.09,124.06,0.063]
[1743573065810,8.20086157,124.09,124.06,0.063]
[1743573066390,24.40741734,124.09,124.06,0.063]
[1743573070003,16.49087891,124.07,124.06,0.063]
[1743573070180,35.14052777,124.07,124.06,0.063]
[1743573072622,43.20042777,124.07,124.06,0.063]
[1743573074028,123.90042777,124.07,124.06,0.063]
[1743573074919,107.693872,124.07,124.06,0.063]
[1743573075332,123.90042777,124.07,124.06,0.063]
[1743573076511,123.90042777,124.07,124.06,0.063]
[1743573076925,44.77132777,124.07,124.06,0.0001]
[1743573077129,18.933972,124.06,124.04,0.063]
[1743573077435,18.933972,124.06,123.99,0.063]
[1743573077436,18.933972,124.04,123.99,0.063]
[1743573077639,16.34871734,124.0,123.99,0.063]
[1743573077827,35.14052777,124.0,123.99,0.063]
[1743573078541,43.20502777,124.0,123.99,0.063]
[1743573083526,80.7,124.01,123.99,0.063]
[1743573083727,0.14216157,124.02,123.99,0.063]
[1743573083932,0.28432314,124.05,123.99,28.1396]
[1743573084133,0.28432314,124.05,123.99,35.5196]
[1743573084638,16.49087891,124.05,123.99,35.5196]
[1743573084837,16.49087891,124.05,124.0,8.0645]
[1743573086236,24.55217891,124.05,124.0,8.0645]
[1743573093161,16.49087891,124.05,124.0,8.0645]
[1743573095162,0.28432314,124.05,124.0,8.0645]
[1743573097458,0.14216157,124.06,124.0,8.0645]
[1743573097950,0.14216157,124.06,124.0,28.2257]
[1743573100362,8.20286157,124.06,124.0,8.0645]
[1743573100770,0.14216157,124.03,123.99,43.5844]
[1743573102975,0.14216157,124.03,124.0,0.063]
[1743573109782,24.55347891,124.03,124.0,0.063]
[1743573110081,0.14216157,124.01,124.0,0.063]
[1743573110292,24.55467891,124.01,124.0,0.063]
[1743573110454,43.20432777,124.01,124.0,0.063]
[1743573111174,0.14216157,124.01,124.0,0.063]
[1743573111471,16.34871734,124.03,124.0,0.063]
[1743573111652,0.14216157,124.02,124.0,0.063]
[1743573114982,24.41201734,124.02,124.0,0.063]
[1743573118169,0.14216157,124.02,124.0,0.063]
[1743573118367,0.14216157,124.03,124.0,0.063]
[1743573118575,0.03,124.04,124.0,6.0677]
[1743573118873,0.03,124.04,124.01,1.5067]
[1743573119974,0.03,124.04,124.02,8.0632]
[1743573122363,0.03,124.04,124.01,16.9502]
[1743573122562,0.03,124.04,124.01,8.8867]
[1743573122760,0.17216157,124.04,124.01,8.8867]
[1743573123075,16.34871734,124.03,124.0,6.0677]
[1743573123585,0.14216157,124.03,124.0,6.0677]
[1743573123998,0.14216157,124.03,124.0,0.063]
[1743573124175,8.20466157,124.03,124.0,0.063]
[1743573124766,0.14216157,124.03,124.0,0.063]
[1743573127782,0.14216157,124.01,124.0,0.063]
[1743573128299,16.34871734,124.01,124.0,0.063]
[1743573129862,24.41251734,124.01,124.0,0.063]
[1743573130287,43.20432777,124.01,124.0,0.063]
[1743573131366,16.49087891,124.01,124.0,0.063]
[1743573132788,24.55467891,124.01,124.0,0.063]
[1743573137494,16.49087891,124.01,124.0,0.063]
[1743573137674,0.14216157,124.01,124.0,0.063]
[1743573137876,93.22067145,124.04,124.0,0.063]
[1743573138079,0.14216157,124.03,124.0,1.6035]
[1743573139497,0.14216157,124.03,124.0,9.6677]
[1743573140409,16.49087891,124.03,124.0,0.063]
[1743573140598,24.55337891,124.03,124.0,0.063]
[1743573142100,8.34682314,124.03,124.0,0.063]
[1743573142396,0.28432314,124.03,124.0,0.063]
[1743573142902,80.73,124.04,124.0,0.063]
[1743573144375,0.03,124.04,124.0,0.063]
[1743573146500,16.23655577,124.04,124.0,0.063]
[1743573147610,0.14216157,124.03,124.0,0.063]
[1743573150516,24.55347891,124.03,124.0,0.063]
[1743573150914,16.49087891,124.03,124.0,0.063]
[1743573151299,24.55367891,124.03,124.0,0.063]
[1743573151501,16.20655577,124.02,124.0,0.063]
[1743573152111,24.55367891,124.03,124.0,0.063]
[1743573153007,0.28432314,124.03,124.0,0.063]
[1743573153194,0.17216157,124.04,124.0,0.063]
[1743573154808,0.14216157,124.02,124.0,0.063]
[1743573155619,16.34871734,124.02,124.0,0.063]
[1743573155795,0.14216157,124.02,124.0,0.063]
[1743573159312,0.14216157,124.03,124.0,0.063]
[1743573161624,16.34871734,124.03,124.0,0.063]
[1743573161929,24.41121734,124.03,124.0,0.063]
[1743573163401,8.20466157,124.03,124.0,0.063]
[1743573175836,27.026172,124.04,124.0,0.063]
[1743573176128,43.23272777,124.04,124.0,0.063]